bitfinex-derivatives/quotes_SOLF0:USTF0_20250731
["timestamp","ask_amount","ask_price","bid_price","bid_amount"]
[1753990335180,8.8748,176.25,176.24,3.16]
[1753990335374,8.8748,176.25,176.22,9.77470976]
[1753990335579,8.8748,176.25,176.23,3.16]
[1753990335978,8.8749,176.24,176.23,3.16]
[1753990336376,3.2,176.24,176.23,3.16]
[1753990336572,8.8748,176.25,176.23,3.16]
[1753990336980,3.2,176.25,176.24,3.16]
[1753990337383,3.2,176.26,176.24,3.16]
[1753990337684,3.2,176.31,176.25,3.16]
[1753990338381,3.2,176.31,176.26,3.16]
[1753990338575,5.6737,176.28,176.27,3.16]
[1753990338771,105.6,176.32,176.25,9.77470976]
[1753990338974,3.2,176.25,176.22,6.61470976]
[1753990339284,3.2,176.24,176.22,9.77470976]
[1753990339488,3.2,176.26,176.23,3.16]
[1753990339784,3.2,176.25,176.24,3.16]
[1753990340379,3.2,176.25,176.22,6.61470976]
[1753990340584,3.2,176.24,176.23,3.16]
[1753990340780,3.2,176.23,176.21,6.61470976]
[1753990340979,3.2,176.23,176.22,3.16]
[1753990341181,3.2,176.25,176.21,6.61470976]
[1753990341382,3.2,176.25,176.24,3.16]
[1753990341783,112.21470976,176.32,176.22,6.61470976]
[1753990341980,3.2,176.31,176.22,6.61470976]
[1753990342492,3.2,176.31,176.22,9.77470976]
[1753990342787,3.2,176.24,176.22,9.77470976]
[1753990343189,3.2,176.24,176.23,3.16]
[1753990344488,3.2,176.23,176.17,3.16]
[1753990344789,3.2,176.23,176.17,9.77470976]
[1753990345181,8.8767,176.19,176.17,9.77470976]
[1753990345382,3.2,176.18,176.17,9.77470976]
[1753990345682,6.61470976,176.26,176.14,3.16]
[1753990345683,3.2,176.16,176.14,3.16]
[1753990346085,3.2,176.16,176.15,3.16]
[1753990347291,6.61470976,176.24,176.15,3.16]
[1753990347490,6.61470976,176.24,176.15,9.77470976]
[1753990347491,3.2,176.23,176.15,9.77470976]
[1753990347688,5.6766,176.19,176.15,12.29240976]
[1753990347998,3.2,176.27,176.18,3.16]
[1753990348191,3.2,176.3,176.23,8.8352]
[1753990348485,3.2,176.3,176.24,9.67470976]
[1753990348687,105.6,176.32,176.26,9.67470976]
[1753990348891,3.25,176.28,176.26,9.67470976]
[1753990349093,3.25,176.28,176.26,6.61470976]
[1753990349294,3.25,176.28,176.27,3.06]
[1753990349888,3.25,176.28,176.26,6.61470976]
[1753990350093,3.25,176.28,176.26,9.67470976]
[1753990350283,5.6735,176.29,176.26,9.67470976]
[1753990350888,3.25,176.27,176.26,9.67470976]
[1753990351389,3.25,176.28,176.27,3.06]
[1753990352391,3.25,176.28,176.26,9.67470976]
[1753990352785,3.25,176.28,176.26,15.34890976]
[1753990352982,3.25,176.28,176.26,12.28890976]
[1753990353183,3.25,176.31,176.25,3.06]
[1753990353384,3.25,176.31,176.19,44.0]
[1753990353385,3.25,176.3,176.22,3.06]
[1753990353694,9.86470976,176.3,176.21,6.61470976]
[1753990353900,3.25,176.23,176.21,9.67470976]
[1753990354895,3.25,176.23,176.21,6.61470976]
[1753990355094,3.25,176.31,176.22,3.06]
[1753990355394,3.25,176.24,176.21,9.67470976]
[1753990355589,3.25,176.23,176.21,3.06]
[1753990355785,3.25,176.23,176.21,9.67470976]
[1753990356492,3.25,176.22,176.21,6.61470976]
[1753990356690,3.25,176.21,176.2,6.61470976]
[1753990356889,3.25,176.21,176.2,9.67470976]
[1753990357593,3.25,176.21,176.18,9.67470976]
[1753990357791,3.25,176.27,176.18,9.67470976]
[1753990357993,3.25,176.27,176.19,3.06]
[1753990358392,5.6756,176.22,176.19,3.06]
[1753990358596,3.25,176.21,176.19,3.06]
[1753990359490,6.61470976,176.28,176.19,8.7365]
[1753990359795,3.25,176.22,176.2,3.06]
[1753990360199,8.9252,176.24,176.21,3.06]
[1753990360400,8.9252,176.24,176.22,3.06]
[1753990360600,3.25,176.29,176.22,3.06]
[1753990361103,3.25,176.29,176.22,9.67470976]
[1753990361794,3.25,176.29,176.22,6.61470976]
[1753990361993,5.6746,176.25,176.22,6.61470976]
[1753990362198,3.25,176.24,176.22,9.67470976]
[1753990362497,3.25,176.23,176.22,9.67470976]
[1753990363702,3.25,176.25,176.24,3.06]
[1753990364094,3.25,176.27,176.24,8.7349]
[1753990364300,3.25,176.27,176.25,3.06]
[1753990364506,3.25,176.26,176.25,3.06]
[1753990366113,8.9238,176.28,176.25,8.7346]
[1753990366315,8.9238,176.28,176.26,3.06]
[1753990366512,3.25,176.27,176.24,6.61470976]
[1753990366717,3.25,176.26,176.24,15.34940976]
[1753990366919,5.6739,176.27,176.24,15.34940976]
[1753990367111,3.25,176.25,176.24,15.34940976]
[1753990367618,3.25,176.25,176.24,9.67470976]
[1753990367918,3.25,176.25,176.24,6.61470976]
[1753990369022,3.25,176.25,176.24,4.05777377]
[1753990370419,5.6743,176.26,176.24,4.05777377]
[1753990370725,3.25,176.35,176.25,3.06]
[1753990370923,8.9239,176.28,176.27,4.05777377]
[1753990371424,3.25,176.28,176.27,4.05777377]
[1753990371621,8.9234,176.29,176.27,7.11777377]
[1753990371823,3.25,176.29,176.27,12.79147377]
[1753990372013,3.25,176.29,176.28,7.11777377]
[1753990372217,3.25,176.29,176.28,4.05777377]
[1753990372417,8.9233,176.29,176.28,4.05777377]
[1753990373625,5.674,176.27,176.26,4.05777377]
[1753990373822,3.25,176.26,176.25,4.05777377]
[1753990374825,8.9243,176.26,176.25,4.05777377]
[1753990375122,3.25,176.26,176.24,4.05777377]
[1753990375324,3.25,176.25,176.24,4.05777377]
[1753990375619,8.9247,176.25,176.24,4.05777377]
[1753990376316,8.9247,176.25,176.22,3.06]
[1753990376518,3.25,176.23,176.22,7.11777377]
[1753990376722,3.25,176.23,176.22,4.05777377]
[1753990377124,8.9252,176.23,176.22,4.05777377]
[1753990377520,11.3435,176.34,176.2,48.05777377]
[1753990377521,3.25,176.22,176.2,48.05777377]
[1753990377725,4.05777377,176.28,176.2,4.05777377]
[1753990377726,3.25,176.21,176.2,4.05777377]
[1753990378021,4.66756734,176.32,176.2,7.11777377]
[1753990378226,4.05777377,176.3,176.22,4.05777377]
[1753990378425,3.09,176.29,176.22,4.05777377]
[1753990380127,5.6748,176.25,176.22,4.05777377]
[1753990380328,3.09,176.24,176.22,7.25777377]
[1753990380725,3.09,176.26,176.22,4.05777377]
[1753990380927,3.09,176.26,176.24,7.25777377]
[1753990381126,3.09,176.3,176.26,3.2]
[1753990381428,3.09,176.29,176.26,4.05777377]
[1753990381628,4.05777377,176.32,176.24,4.05777377]
[1753990381821,3.09,176.26,176.24,4.05777377]
[1753990382022,4.05777377,176.32,176.24,4.05777377]
[1753990382231,3.09,176.29,176.2,7.25777377]
[1753990382825,5.6751,176.24,176.22,4.05777377]
[1753990383026,4.05777377,176.3,176.22,4.05777377]
[1753990383027,3.09,176.23,176.22,4.05777377]
[1753990383222,3.09,176.23,176.22,7.25777377]
[1753990383520,3.09,176.23,176.22,4.05777377]
[1753990383928,3.09,176.23,176.22,7.25777377]
[1753990386533,3.09,176.23,176.22,4.05777377]
[1753990388334,3.09,176.23,176.22,12.93327377]
[1753990388736,3.09,176.23,176.22,7.25777377]
[1753990389131,3.09,176.23,176.22,4.05777377]
[1753990389432,4.05777377,176.3,176.22,7.25777377]
[1753990389638,8.7636,176.29,176.24,4.05777377]
[1753990389833,3.09,176.27,176.26,4.05777377]
[1753990390229,3.09,176.29,176.27,8.8739]
[1753990390540,3.09,176.28,176.27,8.8739]
[1753990390742,3.09,176.28,176.27,3.2]
[1753990391537,3.09,176.28,176.21,3.2]
[1753990391739,5.6741,176.27,176.24,4.05777377]
[1753990392039,3.09,176.31,176.24,9.73247377]
[1753990392233,3.09,176.31,176.24,4.05777377]
[1753990392842,5.6741,176.27,176.24,4.05777377]
[1753990393038,3.09,176.27,176.25,3.2]
[1753990393342,3.09,176.33,176.26,4.05777377]
[1753990394336,3.09,176.27,176.26,4.05777377]
[1753990397340,8.7639,176.27,176.26,4.05777377]
[1753990397635,3.09,176.27,176.26,4.05777377]
[1753990397839,3.09,176.27,176.26,7.25777377]
[1753990398338,3.09,176.33,176.26,7.25777377]
[1753990398644,3.09,176.33,176.28,7.25777377]
[1753990398939,8.7623,176.32,176.31,3.2]
[1753990399638,5.6723,176.32,176.3,4.05777377]
[1753990399839,3.09,176.31,176.3,7.25777377]
[1753990400738,3.09,176.34,176.31,3.2]
[1753990400939,3.09,176.34,176.32,4.05777377]
[1753990401243,8.7619,176.34,176.32,7.25777377]
[1753990401440,3.09,176.33,176.32,7.25777377]
[1753990401841,8.762,176.33,176.32,4.05777377]
[1753990402239,3.09,176.33,176.3,4.05777377]
[1753990402439,3.09,176.32,176.28,4.05777377]
[1753990402646,3.09,176.29,176.28,4.05777377]
[1753990403738,3.09,176.29,176.28,7.25777377]
[1753990404243,8.7633,176.29,176.28,4.05777377]
[1753990404548,3.09,176.29,176.28,7.25777377]
[1753990405338,3.09,176.31,176.28,7.25777377]
[1753990405642,3.09,176.34,176.28,4.05777377]
[1753990406043,3.09,176.27,176.26,4.05777377]
[1753990406844,8.7639,176.27,176.26,4.05777377]
[1753990407149,11.3415,176.37,176.22,7.25777377]
[1753990407150,3.09,176.25,176.22,7.25777377]
[1753990407341,3.09,176.25,176.24,5.6749]
[1753990407543,3.09,176.25,176.23,3.2]
[1753990408346,3.09,176.25,176.24,3.25]
[1753990408544,3.09,176.25,176.24,8.9249]
[1753990408749,3.0,176.32,176.24,7.30777377]
[1753990409247,3.0,176.32,176.21,6.34679218]
[1753990409248,3.0,176.32,176.26,7.30777377]
[1753990409750,3.0,176.27,176.26,7.30777377]
[1753990409946,3.0,176.33,176.27,3.25]
[1753990410151,3.0,176.33,176.29,4.05777377]
[1753990410554,3.0,176.33,176.27,12.98157377]
[1753990410752,3.0,176.33,176.27,7.30777377]
[1753990411848,5.6728,176.31,176.27,9.73157377]
[1753990412149,3.0,176.3,176.28,3.25]
[1753990412350,3.0,176.29,176.23,3.25]
[1753990412550,3.0,176.29,176.25,4.05777377]
[1753990412756,3.0,176.29,176.25,7.30777377]
[1753990412952,8.6734,176.29,176.25,12.98207377]
[1753990413147,3.0,176.28,176.25,4.05777377]
[1753990413349,3.0,176.34,176.28,3.25]
[1753990413559,9.72134854,176.37,176.29,4.05777377]
[1753990413560,3.0,176.3,176.29,4.05777377]
[1753990414559,8.6729,176.3,176.29,4.05777377]
[1753990414853,3.0,176.3,176.29,4.05777377]
[1753990415056,3.0,176.3,176.29,7.30777377]
[1753990415261,5.04516187,176.37,176.29,7.30777377]
[1753990415555,3.0,176.32,176.3,3.25]
[1753990416152,3.0,176.37,176.32,3.25]
[1753990416355,3.0,176.37,176.33,7.30777377]
[1753990416559,4.67618667,176.39,176.33,4.05777377]
[1753990416756,3.0,176.36,176.35,7.30777377]
[1753990417348,3.0,176.36,176.35,4.05777377]
[1753990418560,3.0,176.34,176.33,4.05777377]
[1753990418757,3.0,176.34,176.31,3.25]
[1753990418960,3.0,176.33,176.32,4.05777377]
[1753990419762,8.672,176.33,176.32,4.05777377]
[1753990419952,3.0,176.33,176.32,4.05777377]
[1753990420150,3.0,176.33,176.3,3.25]
[1753990420350,3.0,176.33,176.31,7.30777377]
[1753990420660,3.0,176.34,176.33,3.25]
[1753990420960,8.6717,176.34,176.33,4.05777377]
[1753990421759,3.0,176.34,176.33,4.05777377]
[1753990422064,5.0448958,176.42,176.33,7.30777377]
[1753990422252,5.6714,176.35,176.33,7.30777377]
[1753990422457,3.0,176.35,176.34,3.25]
[1753990422962,3.0,176.41,176.34,4.05777377]
[1753990423763,5.6712,176.36,176.34,4.05777377]
[1753990423956,3.0,176.35,176.34,4.05777377]
[1753990424152,3.0,176.35,176.32,3.25]
[1753990424358,3.0,176.34,176.33,4.05777377]
[1753990426262,3.0,176.34,176.33,7.30777377]
[1753990426465,3.0,176.34,176.33,4.05777377]
[1753990426768,3.0,176.34,176.33,12.97977377]
[1753990427163,5.6712,176.36,176.33,9.72977377]
[1753990427466,8.6712,176.36,176.34,3.25]
[1753990427668,8.6712,176.36,176.35,7.30777377]
[1753990427669,3.0,176.36,176.35,7.30777377]
[1753990427865,3.0,176.36,176.35,4.05777377]
[1753990428366,3.0,176.36,176.35,9.72907377]
[1753990428969,3.0,176.36,176.35,4.05777377]
[1753990429669,3.0,176.36,176.33,4.05777377]
[1753990430068,5.6717,176.34,176.33,4.05777377]
[1753990430275,3.0,176.34,176.33,4.05777377]
[1753990430469,3.0,176.34,176.33,7.30777377]
[1753990430966,3.0,176.36,176.34,3.25]
[1753990431165,3.0,176.36,176.35,7.30777377]
[1753990431359,3.0,176.36,176.35,4.05777377]
[1753990432262,4.05777377,176.4,176.28,3.25]
[1753990432470,3.0,176.35,176.25,7.30777377]
[1753990432663,4.05777377,176.33,176.26,3.25]
[1753990432869,3.0,176.32,176.27,5.6737]
[1753990433164,3.0,176.27,176.25,3.25]
[1753990433364,3.0,176.26,176.24,5.6747]
[1753990433559,3.0,176.26,176.24,3.25]
[1753990433865,3.0,176.26,176.25,12.98227377]
[1753990435268,3.0,176.26,176.25,8.9245]
[1753990435874,3.0,176.25,176.24,8.9249]
[1753990437577,5.6739,176.27,176.24,8.9249]
[1753990437780,3.0,176.27,176.25,8.9245]
[1753990438177,4.05777377,176.31,176.25,8.9245]
[1753990438472,3.0,176.24,176.23,3.25]
[1753990438671,3.0,176.24,176.21,4.05777377]
[1753990438872,3.0,176.24,176.23,12.98287377]
[1753990439582,3.0,176.26,176.24,5.6749]
[1753990439879,3.0,176.25,176.24,5.6749]
[1753990440079,3.0,176.25,176.24,8.9249]
[1753990440281,3.0,176.26,176.25,5.6744]
[1753990440580,3.0,176.34,176.25,7.30777377]
[1753990440872,3.0,176.31,176.25,4.05777377]
[1753990441077,5.6733,176.29,176.24,5.6748]
[1753990441272,3.0,176.28,176.23,3.25]
[1753990441679,3.0,176.28,176.19,6.34679218]
[1753990441680,5.6735,176.29,176.24,4.05777377]
[1753990441880,3.0,176.26,176.25,8.9243]
[1753990442979,3.0,176.26,176.25,5.6743]
[1753990445383,3.0,176.26,176.24,5.6748]
[1753990445576,3.0,176.26,176.2,3.25]
[1753990445774,3.0,176.31,176.25,4.05777377]
[1753990445978,3.0,176.31,176.26,5.6741]
[1753990446281,3.0,176.31,176.25,4.05777377]
[1753990446582,3.0,176.28,176.26,5.6741]
[1753990447080,8.6736,176.28,176.26,5.6741]
[1753990447280,3.0,176.27,176.26,5.6741]
[1753990450282,3.0,176.27,176.22,7.30777377]
[1753990450577,8.6741,176.27,176.22,7.30777377]
[1753990450774,3.0,176.26,176.24,5.6746]
[1753990451280,3.0,176.25,176.24,5.6746]
[1753990451776,3.0,176.25,176.2,4.05777377]
[1753990451976,8.6747,176.25,176.21,3.25]
[1753990452280,3.0,176.24,176.23,5.6752]
[1753990453575,3.0,176.24,176.16,44.0]
[1753990453576,3.0,176.24,176.2,7.30777377]
[1753990453982,5.675,176.24,176.21,5.6756]
[1753990454181,5.675,176.24,176.15,149.5]
[1753990454182,3.0,176.25,176.17,3.25]
[1753990454383,4.05777377,176.24,176.13,6.34679218]
[1753990454577,3.0,176.2,176.18,4.05777377]
[1753990454782,11.3455,176.31,176.19,4.05777377]
[1753990454783,4.05777377,176.27,176.19,4.05777377]
[1753990454987,5.6761,176.2,176.17,5.677]
[1753990455194,3.0,176.24,176.13,44.0]
[1753990455478,3.0,176.24,176.23,5.6752]
[1753990455684,28.4122,176.36,176.24,3.25]
[1753990455685,3.0,176.26,176.24,3.25]
[1753990455886,3.0,176.31,176.26,3.25]
[1753990456077,3.0,176.33,176.3,4.05777377]
[1753990456279,3.0,176.33,176.32,4.05777377]
[1753990456692,3.0,176.36,176.32,7.30777377]
[1753990456878,3.0,176.36,176.34,4.05777377]
[1753990457076,3.0,176.36,176.32,4.05777377]
[1753990457282,3.0,176.36,176.32,9.72977377]
[1753990457684,3.0,176.36,176.32,4.05777377]
[1753990457878,5.6712,176.36,176.32,9.72997377]
[1753990458076,3.0,176.35,176.3,4.05777377]
[1753990458278,3.0,176.35,176.22,48.05777377]
[1753990458279,5.6732,176.3,176.26,7.30777377]
[1753990458484,3.0,176.29,176.26,4.05777377]
[1753990458681,3.0,176.29,176.24,7.30777377]
[1753990458878,3.0,176.29,176.26,5.6741]
[1753990459079,3.0,176.29,176.25,3.25]
[1753990459283,3.0,176.27,176.26,7.30777377]
[1753990459582,3.0,176.27,176.26,9.73197377]
[1753990459786,3.0,176.27,176.26,5.6742]
[1753990460190,3.0,176.27,176.26,8.9242]
[1753990460389,3.0,176.27,176.26,5.6742]
[1753990460587,4.05777377,176.34,176.25,9.73217377]
[1753990460783,5.6734,176.29,176.25,5.6744]
[1753990460983,3.0,176.28,176.22,7.27236094]
[1753990461185,7.27236094,176.33,176.22,7.27236094]
[1753990461488,3.0,176.26,176.25,3.25]
[1753990461683,3.0,176.26,176.24,3.25]
[1753990462487,3.0,176.25,176.24,8.9246]
[1753990462690,7.27236094,176.35,176.24,10.52236094]
[1753990462890,3.0,176.36,176.3,7.27236094]
[1753990463091,385.97618667,176.39,176.32,10.52236094]
[1753990463287,3.0,176.35,176.33,3.25]
[1753990463491,381.3,176.39,176.34,10.52236094]
[1753990463690,3.0,176.38,176.32,10.52236094]
[1753990463994,5.6711,176.36,176.32,16.19456094]
[1753990464190,3.0,176.38,176.32,12.94456094]
[1753990464789,5.6712,176.36,176.32,12.94456094]
[1753990464993,3.0,176.35,176.32,7.27236094]
[1753990465194,3.0,176.38,176.32,7.27236094]
[1753990465490,3.0,176.38,176.32,16.19456094]
[1753990466086,5.6712,176.36,176.32,16.19456094]
[1753990466291,20.07,176.32,176.18,6.34878595]
[1753990466492,5.6774,176.16,176.15,9.51668696]
[1753990466686,5.6774,176.16,176.13,3.25]
[1753990466687,3.0,176.17,176.14,9.51668696]
[1753990466890,7.27236094,176.18,176.07,3.25]
[1753990466891,7.27236094,176.13,176.07,3.25]
[1753990467091,7.27236094,176.1,176.03,3.25]
[1753990467392,3.0,176.09,176.03,3.25]
[1753990467791,3.0,176.09,176.03,8.9315]
[1753990468291,3.0,176.09,176.05,3.31]
[1753990468487,3.28,176.12,176.04,7.27236094]
[1753990468789,3.28,176.12,176.06,7.27236094]
[1753990468988,3.28,176.12,176.07,8.9903]
[1753990469186,3.28,176.11,175.98,3.31]
[1753990469386,3.28,176.11,176.04,3.31]
[1753990469597,3.28,176.11,176.05,7.27236094]
[1753990469794,3.28,176.14,176.09,7.27236094]
[1753990469991,113.71236094,176.19,176.1,3.31]
[1753990470194,3.28,176.13,176.11,3.31]
[1753990470496,3.28,176.16,176.1,8.9891]
[1753990471592,3.28,176.16,176.11,8.9889]
[1753990471896,3.28,176.16,176.11,3.31]
[1753990472098,3.28,176.15,176.1,3.31]
[1753990472602,3.28,176.15,176.13,3.31]
[1753990472791,3.28,176.15,176.13,8.9881]
[1753990472990,3.28,176.15,176.13,3.31]
[1753990473187,3.28,176.15,176.14,3.31]
[1753990473391,106.44,176.19,176.14,8.9877]
[1753990473591,3.28,176.16,176.14,3.31]
[1753990473797,106.44,176.19,176.14,8.988]
[1753990473998,3.28,176.15,176.14,5.678]
[1753990475994,3.28,176.18,176.11,7.27236094]
[1753990476195,3.28,176.18,176.13,7.27236094]
[1753990476494,3.28,176.17,176.16,3.31]
[1753990476994,3.28,176.17,176.16,5.6774]
[1753990477198,3.28,176.17,176.09,3.31]
[1753990477399,3.28,176.17,176.07,7.27236094]
[1753990477400,3.28,176.16,176.07,3.31]
[1753990477698,3.28,176.14,176.07,3.31]
[1753990478299,3.28,176.14,176.11,5.6789]
[1753990479296,3.28,176.14,176.1,5.6793]
[1753990479696,3.28,176.14,176.08,3.31]
[1753990480500,3.28,176.14,176.11,5.6788]
[1753990480703,3.28,176.14,176.08,3.31]
[1753990481100,3.28,176.14,176.06,3.31]
[1753990481497,8.9581,176.14,176.06,3.31]
[1753990481702,3.28,176.15,176.06,3.31]
[1753990482804,8.9577,176.15,176.1,5.6791]
[1753990483005,3.28,176.14,176.1,8.9891]
[1753990483208,3.28,176.15,176.1,5.6791]
[1753990483506,5.6783,176.14,176.1,5.6791]
[1753990483699,3.28,176.12,176.1,8.9891]
[1753990484006,3.28,176.12,176.11,5.679]
[1753990485608,3.28,176.12,176.11,8.989]
[1753990486105,3.28,176.12,176.11,5.679]
[1753990486808,3.28,176.12,176.11,8.989]
[1753990489607,3.28,176.12,176.11,5.679]
[1753990490206,3.28,176.12,176.11,8.989]
[1753990490706,3.28,176.15,176.11,3.31]
[1753990490907,3.28,176.14,176.11,3.31]
[1753990491305,3.28,176.14,176.13,5.6781]
[1753990491505,3.28,176.14,176.13,8.9881]
[1753990491705,3.28,176.14,176.13,5.6781]
[1753990492108,3.28,176.13,176.12,8.9884]
[1753990492402,3.28,176.13,176.06,7.27236094]
[1753990492604,3.28,176.13,176.07,3.31]
[1753990493511,7.27236094,176.16,176.06,7.27236094]
[1753990493813,3.28,176.15,176.07,10.58236094]
[1753990494007,3.28,176.15,176.08,3.31]
[1753990494201,3.28,176.14,176.08,3.31]
[1753990495111,3.28,176.13,176.11,5.6788]
[1753990495510,3.28,176.13,176.08,3.31]
[1753990495708,3.28,176.13,176.06,3.31]
[1753990496210,7.27236094,176.12,176.06,3.31]
[1753990496517,3.28,176.11,176.06,3.31]
[1753990496718,3.28,176.11,176.04,3.31]
[1753990496907,106.44,176.19,176.05,7.27236094]
[1753990496908,3.28,176.18,176.05,7.27236094]
[1753990497215,5.6782,176.14,176.1,5.6793]
[1753990497418,3.28,176.16,176.1,5.6793]
[1753990497908,3.28,176.13,176.09,3.31]
[1753990498415,3.04,176.12,176.1,5.6792]
[1753990498805,5.6781,176.14,176.1,5.6792]
[1753990499116,3.04,176.11,176.1,5.6792]
[1753990499712,3.04,176.11,176.1,8.9992]
[1753990499914,5.6779,176.15,176.11,5.6787]
[1753990500114,3.04,176.12,176.11,8.9987]
[1753990500415,3.04,176.17,176.12,5.6785]
[1753990500610,3.04,176.17,176.08,3.32]
[1753990500811,3.04,176.16,176.08,3.32]
[1753990501011,3.04,176.16,176.13,5.6782]
[1753990501215,3.04,176.17,176.09,7.27236094]
[1753990501416,3.04,176.19,176.1,3.32]
[1753990501716,3.04,176.19,176.15,5.6777]
[1753990502013,3.04,176.16,176.15,5.6777]
[1753990502414,3.04,176.16,176.15,8.9977]
[1753990502809,3.04,176.18,176.17,5.6769]
[1753990503017,3.04,176.18,176.17,8.9969]
[1753990503218,3.04,176.19,176.16,3.32]
[1753990503408,106.12,176.21,176.16,3.32]
[1753990503614,3.04,176.2,176.16,3.32]
[1753990504415,3.04,176.2,176.17,5.6769]
[1753990504615,3.04,176.2,176.14,3.32]
[1753990504919,3.04,176.19,176.11,3.32]
[1753990505114,3.04,176.19,176.13,3.32]
[1753990505313,5.677,176.18,176.13,8.9983]
[1753990505516,3.04,176.16,176.14,3.32]
[1753990505918,3.04,176.15,176.1,7.27236094]
[1753990506113,3.04,176.15,176.11,3.32]
[1753990506519,3.04,176.15,176.13,8.9983]
[1753990506717,3.04,176.14,176.13,5.6783]
[1753990507115,7.27236094,176.2,176.1,5.6791]
[1753990507319,3.04,176.17,176.11,3.32]
[1753990507624,3.04,176.14,176.12,3.32]
[1753990507921,3.04,176.14,176.13,3.32]
[1753990508121,7.27236094,176.18,176.12,3.32]
[1753990508122,3.04,176.13,176.12,3.32]
[1753990508717,3.04,176.13,176.1,5.6791]
[1753990508918,3.04,176.12,176.1,8.9991]
[1753990509216,3.04,176.12,176.11,3.32]
[1753990509714,11.91608675,176.18,176.11,3.32]
[1753990509918,3.04,176.13,176.12,3.32]
[1753990510325,7.05893082,176.13,176.12,3.32]
[1753990510821,4.01893082,176.13,176.12,3.32]
[1753990511025,5.678,176.15,176.12,3.32]
[1753990511224,4.01924947,176.14,176.13,3.32]
[1753990511716,9.69734947,176.14,176.13,3.32]
[1753990511918,4.01924947,176.14,176.12,3.32]
[1753990512126,4.01924947,176.13,176.11,5.6788]
[1753990512322,7.05924947,176.12,176.1,5.6793]
[1753990512523,4.01924947,176.11,176.1,3.32]
[1753990512720,7.68372581,176.17,176.11,3.32]
[1753990513025,3.04,176.17,176.13,7.27236094]
[1753990513221,106.02,176.2,176.15,3.32]
[1753990513222,5.6768,176.18,176.15,3.32]
[1753990513426,3.04,176.16,176.15,3.32]
[1753990513626,3.04,176.16,176.15,8.9976]
[1753990514028,3.04,176.16,176.13,3.32]
[1753990514227,3.04,176.16,176.14,3.32]
[1753990514725,3.04,176.16,176.15,5.6777]
[1753990515120,3.04,176.16,176.15,8.9977]
[1753990516214,5.677,176.18,176.16,3.32]
[1753990516420,3.04,176.16,176.15,8.9977]
[1753990516619,3.04,176.18,176.17,3.32]
[1753990517330,110.66372581,176.2,176.18,3.32]
[1753990517527,3.04,176.18,176.16,3.32]
[1753990517722,3.04,176.17,176.16,3.32]
[1753990518324,3.04,176.19,176.16,3.32]
[1753990518627,3.04,176.18,176.17,3.32]
[1753990519224,3.04,176.18,176.09,3.32]
[1753990519430,3.04,176.17,176.14,3.32]
[1753990519730,3.04,176.17,176.15,7.27236094]
[1753990519929,3.04,176.16,176.1,3.32]
[1753990520129,3.04,176.13,176.11,3.32]
[1753990520324,117.93608675,176.2,176.12,3.32]
[1753990520531,3.04,176.17,176.16,3.32]